[Event "44th Chess Olympiad Open 2022"]
[Site "Chennai"]
[Date "2022.08.06"]
[Round "8.25"]
[White "Horvath, Dominik"]
[Black "Kanyamarala, Tarun"]
[Result "0-1"]
[WhiteElo "2488"]
[BlackElo "2379"]
[Annotator "TA"]
[PlyCount "62"]
[EventDate "2022.??.??"]
[TimeControl "60"]

{[%evp 15,62,15,24,13,21,21,24,15,22,3,15,17,27,33,41,38,41,54,80,76,105,0,47,
29,19,30,75,0,0,-100,-97,-90,-89,-158,-156,-293,-296,-293,-285,-341,-345,-497,
-493,-790,-778,-1272,-1237,-1183,-1013]} 1. Nf3 {[%emt 0:00:08]} d5 {[%emt 0:
00:00]} 2. g3 {[%emt 0:00:52]} Nf6 {[%emt 0:05:22]} 3. Bg2 {[%emt 0:00:15]} e6
{[%emt 0:00:36]} 4. d4 {[%emt 0:01:08]} c5 {[%emt 0:03:09]} 5. c4 {[%emt 0:00:
00]} dxc4 {[%emt 0:00:32]} 6. O-O {[%emt 0:00:38]} Nc6 {[%emt 0:00:30]} 7. Qa4
{[%emt 0:01:14]} Bd7 {[%emt 0:00:07]} 8. Qxc4 {[%emt 0:00:05]} b5 {[%emt 0:00:
00]} 9. Qc3 {[%emt 0:00:05] E04: Open Catalan: 5 Nf3.} b4 {[%emt 0:02:01]} 10.
Qd3 {[%emt 0:06:27]} Rc8 {[%emt 0:00:21]} 11. dxc5 {[%emt 0:07:31] White has
an edge.} Bxc5 {[%emt 0:00:30]} 12. Nbd2 {[%emt 0:00:24] is currently scoring
better than 12.Be3.} O-O {[%emt 0:03:35]} 13. Nb3 {[%emt 0:00:46]} Be7 {
[%emt 0:10:06]} 14. Be3 {[%emt 0:22:48] [#]} Qc7 $146 {[%emt 0:21:55]} ({
Predecessor:} 14... Nd5 15. Bc5 Bxc5 16. Nxc5 Nce7 17. Rac1 Bc6 18. Nd4 Qa5 19.
Qd2 Ba8 20. Ndb3 Qb5 {1-0 (49) Esipenko,A (2636)-Lu,S (2611) Moscow 2019}) 15.
Rac1 {[%emt 0:02:33]} Qb8 {[%emt 0:12:05]} 16. Nc5 {[%emt 0:15:40]} Be8 {
[%emt 0:01:30]} 17. Na6 {[%emt 0:06:22]} Qb7 {[%emt 0:00:45]} 18. Nc5 {[%emt 0:
00:00]} (18. Nd4 $16) 18... Qb8 $1 $14 {[%emt 0:00:01]} 19. Qa6 {[%emt 0:06:58]
} Nd5 {[%emt 0:04:58] Prevents Bf4.} 20. Bg5 {[%emt 0:00:04]} Nd4 {[%emt 0:00:
00]} 21. Nxd4 {[%emt 0:08:27]} ({White should try} 21. Bxe7 $16 Nxf3+ 22. Bxf3
Nxe7 23. Nb7) 21... Bxg5 $11 {[%emt 0:06:04]} 22. Bxd5 {[%emt 0:11:06]} (22. e3
$1 $11) 22... Bxc1 $17 {[%emt 0:02:19]} 23. Rxc1 {[%emt 0:04:38] Threatens to
win with Bb7.} exd5 {[%emt 0:00:44]} 24. Nf5 {[%emt 0:00:04]} (24. Kg2 $142)
24... Bb5 {[%emt 0:02:31]} 25. Qd6 {[%emt 0:00:21]} (25. Ne7+ $17 Kh8 26. Qa5)
25... Qxd6 $19 {[%emt 0:01:48]} (25... Bxe2 26. Ne7+ Kh8 27. Nxc8 Rxc8 28. Qxd5
$11) 26. Nxd6 {[%emt 0:00:03] [#] Pair of Knights!} Rc6 $1 {[%emt 0:01:10]} 27.
Nf5 {[%emt 0:00:03]} (27. Nxb5 Rfc8) 27... Rc7 {[%emt 0:00:27] Inhibits Ne7+.}
28. a3 {[%emt 0:01:29]} (28. Nb3 {was called for.} Rxc1+ 29. Nxc1) 28... bxa3 {
[%emt 0:01:27] Black is clearly winning.} 29. b4 {[%emt 0:00:05]} (29. bxa3
$142 Rfc8 30. Rb1 Bxe2 31. Nd4) 29... a5 {[%emt 0:01:13]} 30. Nd6 {[%emt 0:00:
00]} Bxe2 {[%emt 0:00:46]} 31. bxa5 {[%emt 0:00:39]} Rb8 {[%emt 0:01:51]
Weighted Error Value: White=0.70/Black=0.05 (flawless)} 0-1

[Event "44th Chess Olympiad Open 2022"]
[Site "Chennai"]
[Date "2022.08.06"]
[Round "8.25"]
[White "O`Gorman, Tom"]
[Black "Shengelia, David"]
[Result "1-0"]
[WhiteElo "2401"]
[BlackElo "2462"]
[Annotator "TA"]
[PlyCount "59"]
[EventDate "2022.??.??"]
[TimeControl "60"]

{[%evp 10,59,16,0,25,40,54,56,54,56,91,88,91,106,104,112,104,98,101,99,124,120,
142,125,158,155,231,216,272,216,262,258,246,234,243,231,316,316,601,589,955,
944,1243,842,2390,2202,29986,29983,29987,29988,29994,29995]} 1. d4 {[%emt 0:00:
00]} Nf6 {[%emt 0:00:12]} 2. c4 {[%emt 0:00:06]} e6 {[%emt 0:00:07]} 3. Nc3 {
[%emt 0:00:07]} Bb4 {[%emt 0:00:16]} 4. f3 {[%emt 0:00:06]} d5 {[%emt 0:00:33]}
5. a3 {[%emt 0:00:07]} Be7 {[%emt 0:00:51]} 6. e4 {[%emt 0:00:09]} dxc4 {
[%emt 0:00:31][%cal Yb7b5] E20: Nimzo-Indian: 4 g3 and 4 f3.} 7. Be3 {[%emt 0:
00:00]} a6 {[%emt 0:18:12]} 8. Bxc4 {[%emt 0:00:54]} b5 {[%emt 0:00:07] White
is slightly better.} 9. Ba2 {[%emt 0:05:42]} Bb7 {[%emt 0:19:03] [#]} 10. Nge2
$146 {[%emt 0:02:52]} ({Predecessor:} 10. Qe2 O-O 11. Nh3 b4 12. axb4 Bxb4 13.
O-O c6 14. Rfd1 a5 15. Nf4 Re8 16. Qf2 {1-0 (34) Berchtold,C (2057)-Allacher,E
(2111) Jenbach 2009}) 10... Nbd7 {[%emt 0:00:13]} 11. e5 {[%emt 0:03:31]} Nd5 {
[%emt 0:03:29]} 12. Nxd5 {[%emt 0:00:10]} Bxd5 {[%emt 0:00:05]} 13. Bxd5 {
[%emt 0:00:14]} exd5 {[%emt 0:00:02]} 14. O-O {[%emt 0:02:11]} Nb6 {[%emt 0:00:
00]} 15. f4 $1 {[%emt 0:15:03][%cal Yf3f4,Yf4f5] White is more active.} f5 {
[%emt 0:00:52]} 16. g4 $1 {[%emt 0:01:05]} fxg4 {[%emt 0:14:35] [#]} 17. f5 $1
{[%emt 0:02:55] aiming for Nf4.} Bg5 {[%emt 0:08:42] [#]} (17... O-O $16 {
might work better.}) 18. Nf4 $1 $18 {[%emt 0:06:01]} h5 {[%emt 0:11:12]} 19.
Qe2 {[%emt 0:04:16] Ne6 is the strong threat.} Bxf4 {[%emt 0:00:30]} 20. Bxf4 {
[%emt 0:00:13] Strongly threatening Qc2.} O-O {[%emt 0:04:37]} 21. Qd3 {
[%emt 0:02:00]} Qd7 {[%emt 0:04:31]} 22. Bg3 {[%emt 0:03:53]} Rac8 {[%emt 0:00:
00]} 23. Rae1 {[%emt 0:03:52]} c5 $2 {[%emt 0:00:37]} (23... Rce8 24. Bh4 b4
25. axb4 Qb5) 24. dxc5 {[%emt 0:05:21]} Rxc5 {[%emt 0:00:07]} 25. e6 {[%emt 0:
00:00][%cal Ye5e6,Ye6e7]} Qe7 {[%emt 0:00:07]} 26. f6 {[%emt 0:02:36]} gxf6 {
[%emt 0:00:19] [#]} 27. Bd6 $1 {[%emt 0:00:28]} Qxd6 {[%emt 0:00:00]} (27...
Nc8 28. Bxe7) 28. Qg6+ {[%emt 0:00:07] White mates.} Kh8 {[%emt 0:00:02]} 29.
e7 {[%emt 0:00:16]} Rcc8 {[%emt 0:00:35]} 30. Rf5 {[%emt 0:00:00] Black did
not feel at home in the position after the opening. Weighted Error Value:
White=0.05 (flawless) /Black=0.80} 1-0

[Event "44th Chess Olympiad Open 2022"]
[Site "Chennai"]
[Date "2022.08.06"]
[Round "8.25"]
[White "Baburin, Alexander"]
[Black "Ragger, Markus"]
[Result "1/2-1/2"]
[WhiteElo "2400"]
[BlackElo "2647"]
[Annotator "TA"]
[PlyCount "61"]
[EventDate "2022.??.??"]
[TimeControl "60"]

{[%evp 22,61,12,9,10,10,12,13,9,6,6,2,10,2,14,0,0,0,0,0,0,0,0,0,0,0,0,0,0,0,0,
0,0,0,0,0,0,0,0,0,0,-97]} 1. d4 {[%emt 0:00:04]} Nf6 {[%emt 0:00:03]} 2. c4 {
[%emt 0:00:06]} g6 {[%emt 0:00:04]} 3. Nf3 {[%emt 0:00:08]} Bg7 {[%emt 0:00:07]
} 4. g3 {[%emt 0:00:04]} d5 {[%emt 0:00:07]} 5. cxd5 {[%emt 0:00:07]} Nxd5 {
[%emt 0:00:04]} 6. Bg2 {[%emt 0:00:06]} Nb6 {[%emt 0:00:17]} 7. O-O {[%emt 0:
00:00]} Nc6 {[%emt 0:00:34]} 8. e3 {[%emt 0:00:44]} O-O {[%emt 0:00:48]} 9. Nc3
{[%emt 0:01:29]} Re8 {[%emt 0:08:31]} 10. d5 {[%emt 0:11:49]} Na5 {[%emt 0:00:
00]} 11. Nd4 {[%emt 0:00:06]} Bd7 {[%emt 0:00:00]} 12. b3 {[%emt 0:06:56] The
position is equal.} c6 {[%emt 0:00:35] D76: Fianchetto Grünfeld: Main Line
with 7...Nb6.} 13. dxc6 {[%emt 0:00:31]} Nxc6 {[%emt 0:00:00]} 14. Nxc6 {
[%emt 0:00:00]} Bxc6 {[%emt 0:00:00]} 15. Bxc6 {[%emt 0:00:00]} bxc6 {[%emt 0:
00:00]} 16. Bb2 {[%emt 0:00:00]} c5 {[%emt 0:12:24]} 17. Qe2 {[%emt 0:10:57]}
c4 {[%emt 0:06:07]} 18. bxc4 {[%emt 0:04:19]} Qc8 {[%emt 0:00:00]} 19. Nd5 {
[%emt 0:01:59]} Bxb2 $1 {[%emt 0:02:19]} 20. Nxb6 {[%emt 0:03:35]} axb6 {
[%emt 0:00:00]} 21. Qxb2 {[%emt 0:00:08]} Qxc4 {[%emt 0:12:45] [#]} (21... Qe6
{feels hotter.} 22. Rfd1 Qxc4 23. Rd4 Qc6) 22. Qxb6 $146 {[%emt 0:01:23]} ({
Predecessor:} 22. Rfc1) 22... Rxa2 {[%emt 0:03:10]} (22... Reb8 $5 23. Qd4 Qxd4
24. exd4 Ra3 $11) 23. Rxa2 {[%emt 0:14:21]} Qxa2 $11 {[%emt 0:00:00] Endgame
KQR-KQR} 24. Qb7 {[%emt 0:02:27]} Qa8 {[%emt 0:00:00]} 25. Qxa8 {[%emt 0:00:34]
} Rxa8 {[%emt 0:00:00] KR-KR} 26. h4 {[%emt 0:00:28]} h5 {[%emt 0:00:00]} 27.
Kg2 {[%emt 0:00:00]} Kg7 {[%emt 0:00:00]} 28. Kf3 {[%emt 0:00:00]} Ra2 {
[%emt 0:00:00]} 29. Rb1 {[%emt 0:00:12]} Kf6 {[%emt 0:00:00]} 30. Rb6+ {
[%emt 0:00:39]} e6 {[%emt 0:00:00]} 31. Ke4 {[%emt 0:00:00] Weighted Error
Value: White=0.01 (flawless) /Black=0.02 (flawless)} (31. Rb4 $11 {keeps the
balance.}) 1/2-1/2

[Event "44th Chess Olympiad Open 2022"]
[Site "Chennai"]
[Date "2022.08.06"]
[Round "8.26"]
[White "Mchedlishvili, Mikheil"]
[Black "Rohl Montes, Juan Armando"]
[Result "1-0"]
[WhiteElo "2593"]
[BlackElo "2382"]
[Annotator "TA"]
[PlyCount "94"]
[EventDate "2022.??.??"]
[TimeControl "60"]

{[%evp 9,94,14,20,18,26,0,0,0,0,0,12,0,1,0,0,-11,0,0,0,0,0,-20,-5,-53,-43,-34,
-5,-5,-10,-4,-5,-5,-14,-42,0,0,47,51,44,43,45,41,51,44,54,48,55,38,85,79,89,84,
227,255,263,221,240,161,160,144,141,156,253,246,245,214,187,188,165,160,291,
291,359,345,302,116,116,116,116,116,116,99,99,99,29981,29982,29995]} 1. c4 {
[%emt 0:00:07]} e5 {[%emt 0:01:24]} 2. Nc3 {[%emt 0:00:20]} d6 {[%emt 0:01:24]}
3. Nf3 {[%emt 0:01:13]} f5 {[%emt 0:01:47]} 4. g3 {[%emt 0:04:52]} Nf6 {
[%emt 0:02:08]} 5. d4 {[%emt 0:00:29]} e4 {[%emt 0:01:06]} 6. Nh4 {[%emt 0:00:
00][%cal Yf3h4,Yh4g2,Yg2f4] A21: English Opening: 1...e5 2 Nc3.} c6 {[%emt 0:
12:35]} 7. Bg5 {[%emt 0:03:27]} Be7 {[%emt 0:07:30]} 8. e3 {[%emt 0:00:00] The
position is equal.} O-O {[%emt 0:05:59]} 9. Ng2 {[%emt 0:05:58]} Na6 {[%emt 0:
03:40][%cal Yb8a6,Ya6c7,Yc7e6]} 10. Nf4 {[%emt 0:00:53]} Nc7 {[%emt 0:03:59]}
11. h4 {[%emt 0:07:33]} Ne6 {[%emt 0:02:41] [#]} 12. Qb3 $146 {[%emt 0:21:57]
[%cal Yc4c5]} ({Predecessor:} 12. Nxe6 Bxe6 13. Be2 h6 14. Bxf6 Bxf6 15. h5 c5
16. dxc5 Bxc3+ 17. bxc3 dxc5 18. Qb3 {½-½ (36) Wojtaszek,R (2749)-Agrest,E 
(2593) Tallinn 2016}) 12... Qb6 {[%emt 0:06:55] Prevents c5.} 13. Be2 {[%emt 0:
07:04]} Nxf4 {[%emt 0:02:49]} 14. Bxf4 {[%emt 0:00:38]} Be6 {[%emt 0:01:02]}
15. O-O {[%emt 0:05:12]} h6 {[%emt 0:12:10]} 16. Na4 {[%emt 0:00:00]} (16. Rfb1
$11) 16... Qxb3 $15 17. axb3 {[%emt 0:00:00]} Nd7 (17... Ng4 $5 {[%cal Rg7g5]}
18. Bxg4 fxg4 $11) 18. h5 $1 {[%emt 0:03:51]} Nf6 {[%emt 0:00:00]} 19. Kg2 {
[%emt 0:00:00]} Bf7 20. Rh1 {[%emt 0:00:00]} b5 21. Nc3 {[%emt 0:00:00]} bxc4 (
21... b4 $5 {[%cal Rb4c3]} 22. Nb1 a5 $15) 22. bxc4 {[%emt 0:00:16]} Rfb8 {
[%emt 0:00:20]} (22... a5 $1 $11) 23. c5 $1 $14 {[%emt 0:00:00]} Ne8 24. Na4 {
[%emt 0:07:14]} Rb4 $1 {[%emt 0:03:50]} 25. cxd6 {[%emt 0:00:00]} Bxd6 {
[%emt 0:08:59]} 26. Bxd6 {[%emt 0:03:29]} Nxd6 {[%emt 0:11:07]} 27. Rhc1 {
[%emt 0:00:11]} Bd5 {[%emt 0:00:16]} 28. Bd1 {[%emt 0:00:46]} Nc4 {[%emt 0:01:
31]} (28... a5 $14) 29. b3 $1 $16 {[%emt 0:00:56]} Nd2 {[%emt 0:00:00]} 30. Nc5
{[%emt 0:03:01]} Bxb3 {[%emt 0:05:24]} (30... a5 $16 {was called for.}) 31.
Nxb3 $18 {[%emt 0:02:47]} Nxb3 32. Rcb1 {[%emt 0:00:54]} Rab8 {[%emt 0:02:07]}
33. Bxb3+ {[%emt 0:00:10]} Rxb3 {[%emt 0:00:00]} 34. Rxb3 {[%emt 0:00:02]} Rxb3
{[%emt 0:00:00]} 35. Rxa7 {[%emt 0:02:31] Endgame KR-KR} Rb5 {[%emt 0:00:00]
Inhibits Ra5.} (35... Rb8 $16 36. Rc7 Rb1 37. Rxc6 Kf7) 36. Rc7 Rb6 {[%emt 0:
00:39]} 37. Re7 {[%emt 0:00:58] Re5 is the strong threat.} Kf8 {[%emt 0:03:07]
[#]} 38. Re5 {[%emt 0:00:07]} Rb5 {[%emt 0:00:00] Strongly threatening ...Rxe5.
} 39. Re6 {[%emt 0:03:32]} Rb6 {[%emt 0:00:00]} (39... Kf7 $16 {keeps fighting.
} 40. Rxc6 Rb1) 40. d5 $1 {[%emt 0:02:01]} Rb5 {[%emt 0:00:00]} 41. dxc6 {
[%emt 0:30:29]} Rc5 {[%emt 0:29:09] [#]} 42. Rd6 $2 {[%emt 0:00:00]} (42. Kh3
$1 $18 {is the precise move to win.}) 42... Ke7 $16 {[%emt 0:04:26]} 43. Rd7+ {
[%emt 0:04:12]} Kf6 {[%emt 0:00:11]} 44. c7 {[%emt 0:17:24][%cal Yg3g4] And
now g4! would win. White is more active.} g5 {[%emt 0:02:24]} 45. g4 {[%emt 0:
00:00]} fxg4 {[%emt 0:00:00]} 46. Kg3 {[%emt 0:00:00]} Kf5 {[%emt 0:00:00] [#]}
(46... Ke6 $16 47. Rh7 Kf5) 47. Rd5+ $3 {[%emt 0:00:00]} Ke6 {[%emt 0:00:00]
Weighted Error Value: White=0.14 (very precise) /Black=0.26 (precise)} (47...
Rxd5 48. c8=Q+) 1-0

[Event "44th Chess Olympiad Open 2022"]
[Site "Chennai"]
[Date "2022.08.06"]
[Round "8.26"]
[White "Pantsulaia, Levan"]
[Black "Castro Torres, Jose Luis"]
[Result "1-0"]
[WhiteElo "2581"]
[BlackElo "2326"]
[Annotator "TA"]
[PlyCount "87"]
[EventDate "2022.??.??"]
[TimeControl "60"]

{[%evp 10,87,13,8,19,-12,-10,-14,-20,-10,0,-6,-12,-14,-8,-3,-10,-43,-30,-58,
-47,-52,-41,-50,-35,-39,-50,-59,-39,-64,-60,-103,-66,-68,-81,-72,-77,-61,-27,
-41,-44,-29,16,17,8,10,16,4,39,23,44,44,44,45,100,91,104,106,97,95,104,97,247,
239,304,212,203,207,208,214,204,210,335,349,347,293,750,720,884,871]} 1. Nf3 {
[%emt 0:00:03]} Nf6 {[%emt 0:00:16]} 2. g3 {[%emt 0:00:08]} g6 {[%emt 0:00:04]}
3. b3 {[%emt 0:00:05][%cal Yb2b3,Yb3b4]} Bg7 {[%emt 0:00:10]} 4. Bb2 {[%emt 0:
00:07]} O-O {[%emt 0:00:06]} 5. Bg2 {[%emt 0:00:14]} d5 {[%emt 0:00:28]} 6. c4
{[%emt 0:00:14]} Nc6 {[%emt 0:00:16] A05: Réti Opening: 1 Nf3 Nf6.} 7. O-O {
[%emt 0:01:48]} d4 {[%emt 0:00:05]} 8. b4 {[%emt 0:13:55]} e5 {[%emt 0:00:00]
The position is equal.} 9. b5 {[%emt 0:02:43]} Na5 {[%emt 0:00:06]} 10. d3 {
[%emt 0:08:46]} Re8 {[%emt 0:02:21]} 11. Nbd2 {[%emt 0:04:35] [#]} c5 $146 {
[%emt 0:04:34]} ({Predecessor:} 11... c6 12. a4 c5 13. Ng5 Qe7 14. Nde4 Nxe4
15. Nxe4 f5 16. Nd2 Be6 17. Nb3 Nxb3 18. Qxb3 {½-½ (24) Nagel,H (2103)
-Packroff,H (2223) ICCF email 2014}) 12. bxc6 {[%emt 0:02:15]} Nxc6 {[%emt 0:
00:00]} 13. Nb3 {[%emt 0:14:17]} Qc7 {[%emt 0:05:38]} 14. Ba3 {[%emt 0:06:08]}
b6 {[%emt 0:08:39]} 15. Nbd2 {[%emt 0:03:00]} h6 {[%emt 0:05:26]} 16. Ne1 {
[%emt 0:01:35]} Bb7 {[%emt 0:02:23]} 17. Qa4 {[%emt 0:00:13]} Na5 {[%emt 0:00:
00]} 18. Bxb7 {[%emt 0:03:13]} Nxb7 {[%emt 0:03:42]} 19. f3 {[%emt 0:00:51]}
Nd7 {[%emt 0:10:15]} 20. Rb1 {[%emt 0:07:49]} f5 {[%emt 0:01:24]} 21. Nc2 {
[%emt 0:02:21]} Nbc5 {[%emt 0:11:01]} 22. Bxc5 {[%emt 0:00:09]} Nxc5 {[%emt 0:
00:00]} 23. Qb5 {[%emt 0:00:10]} Qd6 {[%emt 0:10:08]} 24. Nb3 {[%emt 0:05:22]}
a6 {[%emt 0:15:59]} 25. Qb4 {[%emt 0:00:09]} Re6 {[%emt 0:00:07]} 26. Nxc5 {
[%emt 0:06:26]} bxc5 {[%emt 0:00:02]} 27. Qb7 {[%emt 0:00:09]} Rae8 {[%emt 0:
00:00]} 28. a4 {[%emt 0:06:47]} R8e7 {[%emt 0:00:53]} 29. Qb8+ {[%emt 0:02:21]}
Kh7 {[%emt 0:00:03]} 30. Qxd6 {[%emt 0:01:52]} Rxd6 {[%emt 0:00:01]} 31. Na1 {
[%emt 0:00:47]} e4 {[%emt 0:00:18]} (31... Rde6 $14) 32. fxe4 $16 {[%emt 0:00:
00]} fxe4 {[%emt 0:00:01]} 33. Nb3 {[%emt 0:00:12]} Rc6 {[%emt 0:02:08] [#]}
34. Nd2 $1 {[%emt 0:00:21]} exd3 {[%emt 0:00:32]} 35. exd3 {[%emt 0:00:05]} h5
{[%emt 0:00:39] This costs Black the game.} (35... Re3 $16) 36. Ne4 $18 {
[%emt 0:00:16]} Bh6 {[%emt 0:00:11]} 37. Rf6 {[%emt 0:01:00]} Be3+ {[%emt 0:00:
00]} 38. Kg2 {[%emt 0:00:11]} Rxf6 {[%emt 0:00:38]} 39. Nxf6+ {[%emt 0:00:06]
KRB-KRN} Kg7 {[%emt 0:00:22]} 40. Ne4 {[%emt 0:00:07]} Rc7 {[%emt 0:00:38]} (
40... Bd2 $142 41. Nxc5 Re2+ 42. Kf3 Re3+ 43. Kf2 Bc3 44. Nxa6 Rxd3) 41. Rb6 {
[%emt 0:37:35]} g5 {[%emt 0:06:41]} 42. a5 {[%emt 0:00:00]} ({Weaker is} 42.
Rxa6 Rb7 $18) 42... Rf7 $2 {[%emt 0:15:52] [#]} (42... Ra7 43. Nxc5 Bd2) 43.
Rxa6 {[%emt 0:00:00]} g4 {[%emt 0:00:02]} 44. Rb6 {[%emt 0:00:00] Weighted
Error Value: White=0.10 (very precise) /Black=0.22 (precise)} 1-0

[Event "44th Chess Olympiad Open 2022"]
[Site "Chennai"]
[Date "2022.08.06"]
[Round "8.26"]
[White "Palomo, Franklin Annervys"]
[Black "Paichadze, Luka"]
[Result "0-1"]
[WhiteElo "2324"]
[BlackElo "2561"]
[Annotator "TA"]
[PlyCount "78"]
[EventDate "2022.??.??"]
[TimeControl "60"]

{[%evp 17,78,24,28,25,26,7,10,7,15,12,8,0,0,0,7,7,11,7,7,-16,-12,-28,-24,-39,
-35,-48,-24,-50,-43,-73,-34,-53,-45,-49,-43,-61,-69,-77,-77,-69,-77,-134,-122,
-303,-79,-74,-56,-112,-101,-123,-65,-207,-194,-224,-224,-272,-222,-1579,-1492,
-29988,-29989,-29989,-1577]} 1. d4 {[%emt 0:00:12]} Nf6 {[%emt 0:00:13]} 2. Nf3
{[%emt 0:00:05]} e6 {[%emt 0:00:05]} 3. c4 {[%emt 0:00:47]} b6 {[%emt 0:01:47]}
4. g3 {[%emt 0:00:14]} Bb7 {[%emt 0:00:08]} 5. Bg2 {[%emt 0:00:07]} Bb4+ {
[%emt 0:00:05]} 6. Bd2 {[%emt 0:00:25]} a5 {[%emt 0:01:22]} 7. O-O {[%emt 0:00:
00]} O-O {[%emt 0:00:07]} 8. a3 {[%emt 0:03:09]} Bxd2 {[%emt 0:03:21]} 9. Qxd2
{[%emt 0:01:18]} d6 {[%emt 0:00:45]} 10. Nc3 {[%emt 0:00:43] E16: Queen's
Indian: 4 g3 Bb7 5 Bg2 Bb4+.} Ne4 {[%emt 0:04:04]} 11. Qc2 {[%emt 0:01:16]}
Nxc3 {[%emt 0:02:14]} 12. Qxc3 {[%emt 0:00:32] The position is equal.} Nd7 {
[%emt 0:02:21] [#]} 13. Rfe1 $146 {[%emt 0:12:30]} ({Predecessor:} 13. Nd2 Bxg2
14. Kxg2 a4 15. e4 e5 16. d5 Nc5 17. Rae1 Qg5 18. Kh1 Rae8 19. f4 exf4 20. gxf4
{0-1 (27) Begmuratov,K (1971)-Zhigalko,S (2572) Chess.com INT 2020}) 13... Nf6
{[%emt 0:04:38]} 14. Nd2 {[%emt 0:02:46]} Bxg2 {[%emt 0:00:11]} 15. Kxg2 {
[%emt 0:00:06]} Qe7 {[%emt 0:07:04]} 16. e4 e5 {[%emt 0:00:00]} 17. Nf3 {
[%emt 0:10:54][%cal Rd4e5]} Rfe8 {[%emt 0:00:00]} 18. d5 {[%emt 0:13:11]} a4 {
[%emt 0:00:00]} 19. Re2 {[%emt 0:10:41]} Nd7 {[%emt 0:00:00]} 20. Ne1 {[%emt 0:
00:00]} Qg5 {[%emt 0:08:05]} 21. Qe3 {[%emt 0:11:33]} Qg6 {[%emt 0:03:54]} 22.
Nf3 {[%emt 0:09:19]} Nc5 {[%emt 0:03:10]} 23. Nh4 {[%emt 0:01:19]} Qf6 {
[%emt 0:01:07][%cal Yb6b5]} 24. Rf1 {[%emt 0:00:40]} b5 {[%emt 0:04:30]} 25.
cxb5 {[%emt 0:07:36]} Rab8 $1 {[%emt 0:04:15]} 26. Rc1 {[%emt 0:07:31][%cal
Yb2b3]} Rxb5 {[%emt 0:00:23]} 27. Rc4 {[%emt 0:00:35]} Reb8 {[%emt 0:01:22]}
28. Qc3 {[%emt 0:01:07]} Rb3 {[%emt 0:00:52]} 29. Qc2 {[%emt 0:01:56]} (29. Qa5
$142) 29... g6 {[%emt 0:02:15] Black is more active.} ({Worse is} 29... Rxb2
30. Qxb2 Rxb2 31. Rxb2 $15) 30. Rc3 $2 {[%emt 0:01:16] Inhibits Nd3.} (30. Qd2
$17 {was necessary.}) 30... Rxc3 $2 {[%emt 0:15:24]} (30... Rxb2 $19 {and
Black stays clearly on top.} 31. Qxb2 Rxb2 32. Rxb2 Nxe4 33. Rxc7 Nc5) 31. Qxc3
$17 {[%emt 0:00:25]} Rb3 {[%emt 0:00:37]} 32. Qc4 {[%emt 0:00:03]} (32. Qa5 $15
) 32... Kg7 {[%emt 0:00:57]} 33. h3 {[%emt 0:00:05]} h6 {[%emt 0:01:42]} (33...
Qg5 $17 34. Kh2 Qd8) 34. Qc2 {[%emt 0:00:32]} (34. Rc2 $15) 34... Nd3 $1 $19 {
[%emt 0:02:13]} 35. Qxc7 {[%emt 0:01:37] [#]} Qg5 $1 {[%emt 0:08:46] aiming
for ...Nf4+.} ({And not} 35... Nxb2 36. Qd7 $15) ({Inferior is} 35... Nf4+ 36.
gxf4 Qxh4 37. Re3 $17) 36. Kf1 {[%emt 0:00:51]} Nxb2 {[%emt 0:00:16] Hoping
for ...Nd3.} 37. Qxd6 $2 {[%emt 0:00:16]} (37. Qc8) 37... Nc4 {[%emt 0:01:07]
[%csl Ya3,Yd6]} 38. Qc7 {[%emt 0:00:42]} Qc1+ {[%emt 0:00:18]} 39. Kg2 {
[%emt 0:00:20] [#]} Ne3+ $1 {[%emt 0:00:09] Weighted Error Value: White=0.69/
Black=0.17 (very precise)} 0-1